Cogmind - Beta 16 @@@ ROGUE MODE // 2025.10.30 @ 12:29:21 // Winter2019/RPGLIKE Player: H3-MLN Result: Destroyed by 8Y-OG7(z) with Makeshift Shrapnel Gun Performance ------------- Evolutions (3) 1500 Regions Visited (11) 2200 Robots Destroyed (198) 990 Value Destroyed (5356) 5356 Prototype IDs (16) 320 Alien Tech Used (0) 0 Bonus (425) 425 TOTAL SCORE: 10791 Bonus ------- High Alert Combat Kills 247 Follower Combat Kills 80 Met Imprinter 300 Friendly Fire -202 Cogmind --------- Core Integrity 0/750 Matter 88/300 Energy 490/490 System Corruption 2% Temperature Cool (8) Movement Walking (120) Location -7/Zion Parts ------- > --- POWER (2) -------- Reinforced Deuterium Engine Enhanced Nuclear Core > --- PROPULSION (2) --- Improved Carbon-fiber Leg Improved Carbon-fiber Leg > --- UTILITY (6) ------ Advanced Weight Redist. System Experimental Sensor Array Advanced Signal Interpreter Makeshift Salvage Targeting Computer Core Analyzer Makeshift Light Armor Plating > --- WEAPON (2) ------- Gatling Laser Precision Assault Rifle > --- INVENTORY (6) ---- Relay Coupler [NC] (116) Phasing AFG Heavy EM Pulse Gun Improved EM Pulse Cannon Rocket Launcher RU-N14's Throwing Claymores (5) Peak State ------------ > --- POWER ------------ Reinforced Deuterium Engine Enhanced Nuclear Core > --- PROPULSION ------- Improved Carbon-fiber Leg Improved Carbon-fiber Leg > --- UTILITY ---------- Advanced Weight Redist. System Experimental Sensor Array Makeshift Salvage Targeting Computer Core Analyzer Weapon Cycler Phasing AFG > --- WEAPON ----------- Gatling Laser Precision Assault Rifle > --- INVENTORY -------- Core Analyzer Reactive Plating Heavy EM Pulse Gun Improved EM Pulse Cannon Rocket Launcher RU-N14's Throwing Claymores [Rating: 65] Favorites ----------- Power Cooled Ion Engine Engine Cooled Ion Engine Power Core Enhanced Nuclear Core Propulsion Aluminum Leg Leg Aluminum Leg Utility Reactive Plating Device Experimental Sensor Array Processor Core Analyzer Protection Reactive Plating Weapon Beam Cannon Energy Gun Gatling Laser Energy Cannon Beam Cannon Ballistic Gun Precision Assault Rifle Launcher Rocket Launcher Special Weapon RU-N14's Throwing Claymores Build | -11 -10 -10 -9 -9 -9 -8 -8 -7 -7 -7 -7 ------- Run | Yrd Mat Min Mat Min Exi Min Mat Fac Low Low Zio Slots Evolved 8 | 2 1 1 3 . . . . 1 . . . Power 1 | . . . 1 . . . . . . . . Propulsion 1 | 1 . . . . . . . . . . . Utility 5 | 1 . 1 2 . . . . 1 . . . Weapon 1 | . 1 . . . . . . . . . . Parts Attached 59 | 7 6 1 13 4 . . 7 11 . 2 8 Power 8 | 2 . . 4 . . . . 2 . . . Engine 7 | 2 . . 4 . . . . 1 . . . Core 1 | . . . . . . . . 1 . . . Reactor . | . . . . . . . . . . . . Propulsion 7 | 2 . . 2 . . . 1 2 . . . Treads . | . . . . . . . . . . . . Leg 7 | 2 . . 2 . . . 1 2 . . . Wheel . | . . . . . . . . . . . . Hover . | . . . . . . . . . . . . Flight . | . . . . . . . . . . . . Utility 28 | 1 3 1 5 3 . . 2 4 . 2 7 Device 16 | 1 2 1 3 2 . . 1 3 . 1 2 Storage . | . . . . . . . . . . . . Processor 9 | . . . 1 1 . . 1 1 . 1 4 Hackware . | . . . . . . . . . . . . Protection 3 | . 1 . 1 . . . . . . . 1 Artifact . | . . . . . . . . . . . . Weapon 16 | 2 3 . 2 1 . . 4 3 . . 1 Energy Gun 6 | 1 1 . 1 . . . 1 2 . . . Energy Cannon 2 | . 2 . . . . . . . . . . Ballistic Gun 5 | 1 . . . 1 . . 2 1 . . . Ballistic Cannon . | . . . . . . . . . . . . Launcher 2 | . . . 1 . . . 1 . . . . Special Weapon 1 | . . . . . . . . . . . 1 Impact Weapon . | . . . . . . . . . . . . Slashing Weapon . | . . . . . . . . . . . . Piercing Weapon . | . . . . . . . . . . . . Special Melee Weapon . | . . . . . . . . . . . . Unidentified Prototypes 10 | . . . 1 1 . . 1 2 . . 5 Parts Lost 2 | . . . . . . . . 1 . . 1 Power . | . . . . . . . . . . . . Propulsion . | . . . . . . . . . . . . Utility 2 | . . . . . . . . 1 . . 1 Weapon . | . . . . . . . . . . . . Highest Loss Streak 1 | . . . . . . . . 1 . . 1 To Critical Strikes . | . . . . . . . . . . . . Average Backups 3 | . 1 2 2 3 4 3 3 4 4 4 5 Power . | . . . . . . . . . . . . Propulsion . | . . . . . . . . . . . . Utility . | . . . . . . . . . 1 1 1 Weapon 2 | . . 1 1 2 3 2 2 3 3 3 3 Tool/Special . | . . . . . . . . . . . . Unused Backups 6 | . . . . . . . 1 1 . . 4 Power . | . . . . . . . . . . . . Propulsion . | . . . . . . . . . . . . Utility 1 | . . . . . . . . . . . 1 Weapon 3 | . . . . . . . . . . . 3 Tool/Special 2 | . . . . . . . 1 1 . . . Average Slot Usage (%) 95 | . 97 99 80 96 100 100 99 99 100 100 98 Engine 13 | . 15 12 15 18 18 18 18 9 8 8 8 Core 2 | . . . . . . . . 7 8 8 8 Leg 19 | . 30 25 19 18 18 18 18 16 16 16 16 Device 23 | . 28 23 15 23 27 27 27 25 25 25 18 Processor 9 | . . . 2 8 9 9 9 13 16 16 22 Protection 7 | . 1 12 9 9 9 9 8 8 8 8 6 Energy Gun 3 | . . . 3 2 . . . 7 8 8 7 Energy Cannon 8 | . 19 25 14 9 9 9 2 . . . . Ballistic Gun 5 | . . . . 6 9 9 15 9 8 8 7 Peak Build Rating 65 | 7 9 10 22 33 33 33 40 52 51 54 65 Average Rating 31 | 3 8 9 17 27 33 33 37 46 51 51 55 On Entrance 28 | . 7 9 10 22 33 33 33 38 51 51 54 Avg Prop Armor Cover (%) 7 | . . . . . . . . . . . 7 Naked Turns . | . . . . . . . . . . . . Heaviest Build 61 | 8 15 16 38 39 39 39 39 43 43 43 61 Greatest Support 55 | 20 20 20 39 39 39 39 44 52 52 55 55 Greatest Overweight (x) 1 | . . . 1 . . . . . . . 1 Average Overweight (x) . | . . . . . . . . . . . . Largest Inventory Capacity 6 | 1 2 3 4 4 4 4 4 4 4 4 6 Average Capacity 3 | 1 1 2 3 4 4 4 4 4 4 4 5 Most Carried 6 | 1 2 3 4 4 4 4 4 4 4 4 6 Average Carried 3 | . 1 2 3 3 4 3 3 3 4 4 5 Final Capacity 6 | 1 2 3 4 4 4 4 4 4 4 4 6 Final Carried 6 | 1 2 3 3 4 4 4 4 4 4 4 6 Class Distribution -------------------- 58% | Mutant 11% | Scavenger-Mutant 11% | Hacker-Mutant 10% | Hacker-Skirmisher 8% | Skirmisher Dominant Class ---------------- Mutant | -10/Materials Skirmisher | -10/Mines Mutant | -9/Materials Mutant | -9/Mines Mutant | -9/Exiles Mutant | -8/Mines Mutant | -8/Materials Hacker-Mutant | -7/Factory Scavenger-Mutant | -7/Lower Caves Scavenger-Mutant | -7/Lower Caves Hacker-Skirmisher | -7/Zion Resources | -11 -10 -10 -9 -9 -9 -8 -8 -7 -7 -7 -7 ----------- Run | Yrd Mat Min Mat Min Exi Min Mat Fac Low Low Zio Matter Collected 2201 | 270 50 30 160 80 . 84 606 640 32 18 231 Remotely 20 | . 20 . . . . . . . . . . Salvage Created 6392 | 56 737 212 1755 134 . 326 1524 1065 60 81 442 Parts 353 | 5 42 2 79 14 . 20 66 82 6 2 35 Haulers Intercepted 14 | . 2 . 6 . . . 3 3 . . . Recyclers Shooed 3 | . . . . 2 . . . 1 . . . Parts Field Recycled . | . . . . . . . . . . . . Retrieved Matter . | . . . . . . . . . . . . Parts Self-Destructed 9 | . . . . . . . . . 7 2 . Prevented . | . . . . . . . . . . . . Parts Restored . | . . . . . . . . . . . . Kills | -11 -10 -10 -9 -9 -9 -8 -8 -7 -7 -7 -7 ------- Run | Yrd Mat Min Mat Min Exi Min Mat Fac Low Low Zio Combat Hostiles Destroyed 124 | . 14 9 28 8 . 9 26 24 3 1 2 Guns 45 | . . . . 2 . 7 19 12 3 1 1 Cannons 55 | . 14 8 21 4 . 2 6 . . . . AOE 20 | . . . 4 2 . . 1 12 . . 1 Classes Destroyed 22 | 1 6 2 5 . . . 1 4 . . 3 Worker 19 | . 4 . 6 1 . 1 2 5 . . . Builder 4 | . . . 1 . . . 2 1 . . . Tunneler 5 | 3 . . . 1 . 1 . . . . . Hauler 14 | . 2 . 6 . . . 3 3 . . . Recycler 6 | . . . 1 1 . . . 4 . . . Mechanic 1 | . . . 1 . . . . . . . . Operator 3 | . 1 . 1 . . . 1 . . . . Watcher 10 | . 3 . 2 . . . 2 3 . . . Swarmer 32 | . 6 . 3 8 . 3 . 12 . . . Grunt 56 | . 8 2 15 . . 6 19 4 2 . . Brawler 1 | . . . . . . . . 1 . . . Duelist 3 | . . . 1 . . . 1 . 1 . . Sentry 16 | . . . 9 . . . 4 2 . 1 . Demolisher 2 | . . 2 . . . . . . . . . Specialist 1 | . . . . . . . . 1 . . . Hunter 3 | . . . . . . . 2 1 . . . Programmer 2 | . . . . . . . . 2 . . . Heavy 1 | . . . . . . . . 1 . . . Zionite 16 | . . . . . . . . . . . 16 Tinkerer 1 | . . . . . . . . . . . 1 Assembled 5 | . . 5 . . . . . . . . . Surgeon 1 | . . . . . . . . . . . 1 Thug 1 | . . . . . . . . . . . 1 Mutant 1 | . . . . . . . . . . . 1 Best Kill Streak 7 | 3 5 4 7 4 . 3 6 7 3 1 6 Combat Bots Only 6 | . 5 4 6 4 . 3 6 4 3 1 1 Max Kills in Single Turn 3 | 1 2 1 3 3 . 2 2 3 1 1 2 Gunslinging . | . . . . . . . . . . . . Exploded 3 | . . . 3 2 . . 1 3 . . 1 Melee . | . . . . . . . . . . . . Uniques/NPCs Destroyed . | . . . . . . . . . . . . Combat | -11 -10 -10 -9 -9 -9 -8 -8 -7 -7 -7 -7 -------- Run | Yrd Mat Min Mat Min Exi Min Mat Fac Low Low Zio Hostile Shots Fired 672 | . 52 26 98 20 . 39 170 114 22 18 113 Missed 237 | . 16 6 32 8 . 14 52 46 10 9 44 Hits 435 | . 36 20 66 12 . 25 118 68 12 9 69 Melee 8 | . . . . . . . . . . . 8 Projectile 427 | . 36 20 66 12 . 25 118 68 12 9 61 AOE 1 | . . 1 . . . . . . . . . Critical Strikes 20 | . 3 . 4 . . . 9 2 1 . 1 Part Disruptions 2 | . . . . . . . . . . . 2 Damage Taken 5535 | . 328 284 741 83 . 235 1762 817 207 64 1014 Core 4111 | . 260 207 523 46 . 154 1341 593 125 49 813 Absorbed by Shields 580 | . . . 236 60 . 100 16 168 . . . Redirected to Core 3201 | . 210 138 437 37 . 141 1017 476 108 27 610 Ignored by Resistances 358 | . . . 50 24 . 16 50 198 4 8 8 Regen/Repaired (Parts) 160 | . . . . . . . 160 . . . . Core Remaining (%) 72 | 100 . 66 . . . 84 38 . . . . Volleys Fired 538 | 5 92 26 136 22 . 28 102 75 8 2 42 Largest 2 | 1 2 2 2 2 . 2 2 2 2 2 2 Hottest 120 | 50 120 120 120 105 . 93 93 108 108 108 108 Shots Fired 941 | 5 123 52 237 44 . 56 201 130 16 4 73 Gun 459 | 5 . . 28 22 . 28 171 120 16 4 65 Cannon 460 | . 123 52 208 22 . 28 27 . . . . Launcher 22 | . . . 1 . . . 3 10 . . 8 Special . | . . . . . . . . . . . . Kinetic 324 | . . . . 16 . 28 171 65 8 2 34 Thermal 561 | 5 123 52 208 22 . 28 27 55 8 2 31 Explosive 22 | . . . 1 . . . 3 10 . . 8 Electromagnetic 34 | . . . 28 6 . . . . . . . Robot Hit Streak 42 | 4 10 11 33 9 . 19 42 22 10 5 21 Robot Miss Streak 4 | 1 3 3 4 3 . 1 3 3 3 1 2 Penetration Max . | . . . . . . . . . . . . Secondary Targets 10 | . . . . . . . 4 2 1 . 3 Max Gunslinging Chain 1 | . . . . . . . 1 1 1 . 1 Shots Hit Robots 632 | 4 45 31 161 26 . 38 160 93 12 4 58 Core Hits 320 | 3 24 15 58 12 . 18 64 75 11 4 36 Critical Kills 2 | . . . 2 . . . . . . . . Critical Parts Destroyed 1 | . . . . . . . . 1 . . . Critical Strikes 6 | 1 . . 2 . . . . 3 . . . Burn 3 | 1 . . . . . . . 2 . . . Meltdown 2 | . . . 2 . . . . . . . . Destroy 1 | . . . . . . . . 1 . . . Melee Attacks . | . . . . . . . . . . . . Impact . | . . . . . . . . . . . . Slashing . | . . . . . . . . . . . . Piercing . | . . . . . . . . . . . . Sneak Attacks . | . . . . . . . . . . . . Combat Hostiles . | . . . . . . . . . . . . Follow-up Attacks . | . . . . . . . . . . . . Damage Inflicted 14435 | 50 933 531 3175 629 . 776 3400 2798 282 92 1769 Guns 6986 | 50 . . 331 257 . 425 2841 1812 282 92 896 Cannons 4881 | . 832 531 2568 211 . 351 388 . . . . Explosions 2485 | . 101 . 245 136 . . 162 986 . . 855 Melee . | . . . . . . . . . . . . Ramming 83 | . . . 31 25 . . 9 . . . 18 Kinetic 4833 | . . . . 194 . 425 2841 843 122 37 371 Thermal 6959 | 50 933 531 2650 347 . 351 388 969 160 55 525 Explosive 2166 | . . . 163 . . . 162 986 . . 855 Electromagnetic 394 | . . . 331 63 . . . . . . . Impact . | . . . . . . . . . . . . Slashing . | . . . . . . . . . . . . Piercing . | . . . . . . . . . . . . Highest Corruption 2 | . . . . . . . 1 1 . . 2 Average Corruption 1 | . . . . . . . 1 1 . . 1 Corruption Purged 1 | . . . . . . . . 1 . . . Corruption Blocked . | . . . . . . . . . . . . Effects 16 | . . . . . . . 2 8 . . 6 Message Errors 6 | . . . . . . . . 3 . . 3 Matter Fused 4 | . . . . . . . 1 3 . . . Energy Discharges 2 | . . . . . . . . 1 . . 1 Parts Rejected 1 | . . . . . . . . . . . 1 Data Loss (major) 1 | . . . . . . . 1 . . . . Alerts 1 | . . . . . . . . 1 . . . Weapon Failures 1 | . . . . . . . . . . . 1 Overload Shots . | . . . . . . . . . . . . Overflow Damage 132 | . 80 . 23 7 . . . 13 . . 9 Projectiles 42 | . 19 . 23 . . . . . . . . Explosions 90 | . 61 . . 7 . . . 13 . . 9 Melee . | . . . . . . . . . . . . Knockbacks . | . . . . . . . . . . . . Impact . | . . . . . . . . . . . . Kinetic . | . . . . . . . . . . . . Secondary . | . . . . . . . . . . . . Self-Inflicted Damage 257 | . . . 52 68 . . . 94 . . 43 Shots 11 | . . . 2 2 . . . 3 . . 4 Rammed . | . . . . . . . . . . . . Targets Rammed 9 | . . . 2 2 . . 1 . . . 4 Kicked 9 | . . . 2 2 . . 1 . . . 4 Crushed . | . . . . . . . . . . . . Highest Temperature 232 | . 7 . 48 11 . . 33 133 232 100 36 Average Temperature 36 | . 7 . 9 6 . . 9 41 133 51 12 Received Heat Transfer 2018 | . 78 54 319 . . 115 1081 49 132 24 166 Siege Activations . | . . . . . . . . . . . . Martial Activations . | . . . . . . . . . . . . Shielding Activations . | . . . . . . . . . . . . Robots Disrupted . | . . . . . . . . . . . . Combat Hostiles . | . . . . . . . . . . . . Robots Corrupted . | . . . . . . . . . . . . Combat Hostiles . | . . . . . . . . . . . . Parts Fried 1 | . . . 1 . . . . . . . . Impact Corruptions . | . . . . . . . . . . . . Robots Melted 4 | . . 1 3 . . . . . . . . Combat Hostiles 4 | . . 1 3 . . . . . . . . Parts Melted 26 | . 1 1 17 . . . . 3 1 . 3 Heat Transferred 14592 | 222 1789 1110 5465 644 . 740 814 2185 375 125 1123 Parts Sabotaged . | . . . . . . . . . . . . Parts Stolen . | . . . . . . . . . . . . Parts Stripped . | . . . . . . . . . . . . Power Chain Reactions 4 | . . . 3 1 . . . . . . . Alert | -11 -10 -10 -9 -9 -9 -8 -8 -7 -7 -7 -7 ------- Run | Yrd Mat Min Mat Min Exi Min Mat Fac Low Low Zio Maximum Alert Level 2 | . 1 . 2 1 . . 2 2 . . . Low Security (%) 41 | 100 64 100 24 4 . 100 24 10 . . . Level 1 34 | . 35 . 10 95 . . 30 64 . . . Level 2 23 | . . . 64 . . . 45 25 . . . Level 3 . | . . . . . . . . . . . . Level 4 . | . . . . . . . . . . . . Level 5 . | . . . . . . . . . . . . High Security . | . . . . . . . . . . . . Max Security . | . . . . . . . . . . . . Peak Influence 625 | 15 311 123 625 363 . 115 513 489 . . . Initial 241 | . 3 100 . 241 . . 38 219 . . . Average 239 | 2 140 32 374 272 . 35 341 310 . . . Influence Increases 4173 | 15 587 133 1141 283 . 305 842 741 103 23 . Destroy 0b10 Robot/C 2360 | . 280 80 560 160 . 180 520 480 80 20 . Destroy 0b10 Robot/NC 315 | 15 50 . 90 15 . 10 50 85 . . . Destroy Leader 570 | . 80 20 166 20 . 30 140 104 10 . . Allied During Kill 30 | . . 3 . 10 . . . 1 13 3 . Successful Hack 120 | . 22 . 49 7 . . 30 12 . . . Disable Machine 420 | . 120 15 165 30 . 75 15 . . . . Destroy Structure 148 | . 20 15 21 11 . 10 27 44 . . . Lose Combat Pursuer 210 | . 15 . 90 30 . . 60 15 . . . Influence Decreases 4173 | 10 335 390 520 714 190 206 459 751 373 160 65 Entered New Map 1333 | . 2 157 . 380 190 . 61 263 175 40 65 Time Decay 2810 | 10 333 213 520 334 . 206 398 478 198 120 . Lost Part 10 | . . . . . . . . 10 . . . Lost Ally 20 | . . 20 . . . . . . . . . Squads Dispatched 17 | . 3 . 1 . . . 5 8 . . . Investigation 7 | . 2 . . . . . 3 2 . . . Extermination 2 | . . . . . . . . 2 . . . Reinforcement 8 | . 1 . 1 . . . 2 4 . . . Assault . | . . . . . . . . . . . . Garrison . | . . . . . . . . . . . . Intercept . | . . . . . . . . . . . . Searches Triggered . | . . . . . . . . . . . . Construction Impeded 3 | . . . . . . . 2 1 . . . Haulers Reinforced . | . . . . . . . . . . . . Active Scanning Responses . | . . . . . . . . . . . . Cargo Convoy Interrupts . | . . . . . . . . . . . . Stealth | -11 -10 -10 -9 -9 -9 -8 -8 -7 -7 -7 -7 --------- Run | Yrd Mat Min Mat Min Exi Min Mat Fac Low Low Zio Distress Signals 5 | . 1 . . . . . 4 . . . . Communications Jammed . | . . . . . . . . . . . . Distress Signals . | . . . . . . . . . . . . Times Spotted 190 | . 22 8 42 11 . 12 37 28 4 1 25 Peak Tracking Total 8 | . 5 2 7 4 . 3 6 6 4 1 8 Tactical Retreats 9 | . 1 . 3 1 . . 2 1 . . 1 Traps | -11 -10 -10 -9 -9 -9 -8 -8 -7 -7 -7 -7 ------- Run | Yrd Mat Min Mat Min Exi Min Mat Fac Low Low Zio Traps Triggered 7 | . 1 . 2 . . . 3 1 . . . Indirectly . | . . . . . . . . . . . . Trap Hack Attempts . | . . . . . . . . . . . . Triggered . | . . . . . . . . . . . . Disarmed 6 | . . . 6 . . . . . . . . Reprogrammed . | . . . . . . . . . . . . Reused . | . . . . . . . . . . . . Traps Extracted . | . . . . . . . . . . . . Installed 1 | . . . . . . . . . . . 1 Triggered . | . . . . . . . . . . . . Fabricated Traps 1 | . . . . . . . . . . . 1 Most Traps Carried 1 | . . 1 1 . . . . . . . 1 Machines | -11 -10 -10 -9 -9 -9 -8 -8 -7 -7 -7 -7 ---------- Run | Yrd Mat Min Mat Min Exi Min Mat Fac Low Low Zio Machines Disabled 28 | . 8 1 11 2 . 5 1 . . . . Max in Single Turn 2 | . 2 1 1 1 . 1 1 . . . . Machines Repaired . | . . . . . . . . . . . . Machines Dismantled . | . . . . . . . . . . . . Machines Sabotaged . | . . . . . . . . . . . . Overloaded Fab Kills . | . . . . . . . . . . . . Hacking | -11 -10 -10 -9 -9 -9 -8 -8 -7 -7 -7 -7 --------- Run | Yrd Mat Min Mat Min Exi Min Mat Fac Low Low Zio Machines Accessed 29 | . 3 . 10 1 1 . 8 6 . . . Terminals 22 | . 3 . 8 1 . . 6 4 . . . Fabricators 1 | . . . . . . . . 1 . . . Repair Stations 1 | . . . . . . . 1 . . . . Recycling Units . | . . . . . . . . . . . . Scanalyzers 3 | . . . 2 . . . 1 . . . . Garrison Access 1 | . . . . . . . . 1 . . . Total Hacks 92 | . 12 . 36 2 1 . 24 17 . . . Successful 50 | . 4 . 22 1 1 . 16 6 . . . Failed 40 | . 7 . 13 1 . . 8 11 . . . Catastrophic 6 | . 2 . 1 . . . 1 2 . . . Database Lockouts 2 | . 1 . 1 . . . . . . . . Manual 32 | . 8 . 13 2 . . 5 4 . . . Terminals 76 | . 12 . 30 2 . . 19 13 . . . Fabricators 1 | . . . . . . . . 1 . . . Repair Stations 2 | . . . . . . . 2 . . . . Recycling Units . | . . . . . . . . . . . . Scanalyzers 9 | . . . 6 . . . 3 . . . . Garrison Access 3 | . . . . . . . . 3 . . . Terminal Hacks 28 | . 3 . 9 1 1 . 9 5 . . . Record 1 | . . . . . 1 . . . . . . Robot Schematic 2 | . . . . 1 . . . 1 . . . Robot Analysis 1 | . 1 . . . . . . . . . . Prototype ID Bank 3 | . 1 . 1 . . . 1 . . . . Level Access Points 1 | . . . . . . . . 1 . . . Branch Access Points 3 | . . . 1 . . . 1 1 . . . Emergency Access Points 1 | . . . . . . . 1 . . . . Locate Traps 3 | . . . 2 . . . . 1 . . . Disarm Traps 1 | . . . 1 . . . . . . . . Hauler Manifests 2 | . . . . . . . 2 . . . . Registered Components 3 | . . . 1 . . . 1 1 . . . Registered Prototypes 2 | . . . 1 . . . 1 . . . . Zone Layout 5 | . 1 . 2 . . . 2 . . . . Fabricator Hacks 1 | . . . . . . . . 1 . . . Build 1 | . . . . . . . . 1 . . . Repair Station Hacks 2 | . . . . . . . 2 . . . . Scan Component 1 | . . . . . . . 1 . . . . Repair 1 | . . . . . . . 1 . . . . Recycling Unit Hacks . | . . . . . . . . . . . . Scanalyzer 8 | . . . 5 . . . 3 . . . . Insert Component 1 | . . . . . . . 1 . . . . Analyze 1 | . . . . . . . 1 . . . . Retrieve Study 6 | . . . 5 . . . 1 . . . . Garrison Access Hacks . | . . . . . . . . . . . . Unauthorized Hacks 11 | . 1 . 8 . . . 2 . . . . Terminals 11 | . 1 . 8 . . . 2 . . . . Track 1 | . . . 1 . . . . . . . . Botnet 3 | . . . 1 . . . 2 . . . . Operators 1 | . 1 . . . . . . . . . . Skim 6 | . . . 6 . . . . . . . . Fabricators . | . . . . . . . . . . . . Repair Stations . | . . . . . . . . . . . . Recycling Units . | . . . . . . . . . . . . Scanalyzers . | . . . . . . . . . . . . Garrison Access . | . . . . . . . . . . . . Data Cores Recovered 1 | . . . 1 . . . . . . . . Used 1 | . . . 1 . . . . . . . . Hacking Detections 25 | . 3 . 8 1 . . 8 5 . . . Full Trace Events 4 | . 1 . . . . . 1 2 . . . Feedback Events . | . . . . . . . . . . . . Feedback Blocked . | . . . . . . . . . . . . Robot Schematics Acquired 5 | . . . . 1 . . . 1 . . 3 Robots Built 2 | . . . . . . . . 2 . . . Authchips . | . . . . . . . . . . . . Time 67 | . . . . . . . . 67 . . . Total Robot Build Rating 8 | . . . . . . . . 8 . . . Part Schematics Acquired 16 | . . . . . . . 1 . . . 15 Parts Built . | . . . . . . . . . . . . Authchips . | . . . . . . . . . . . . Time . | . . . . . . . . . . . . Total Part Build Rating . | . . . . . . . . . . . . Part Studies Acquired 5 | . . . 4 . . . 1 . . . . Parts Repaired 1 | . . . . . . . 1 . . . . Time 38 | . . . . . . . 38 . . . . Parts Recycled . | . . . . . . . . . . . . Recycled Matter . | . . . . . . . . . . . . Retrieved Matter . | . . . . . . . . . . . . Retrieved Components . | . . . . . . . . . . . . Parts Scanalyzed 1 | . . . . . . . 1 . . . . Part Schematics Acquired 1 | . . . . . . . 1 . . . . Parts Damaged . | . . . . . . . . . . . . Bothacking | -11 -10 -10 -9 -9 -9 -8 -8 -7 -7 -7 -7 ------------ Run | Yrd Mat Min Mat Min Exi Min Mat Fac Low Low Zio Used RIF Installer . | . . . . . . . . . . . . Robots Hacked . | . . . . . . . . . . . . Non-combat . | . . . . . . . . . . . . Combat . | . . . . . . . . . . . . Robot Hacks Applied . | . . . . . . . . . . . . Relay Couplers Released . | . . . . . . . . . . . . Fabnet Peak Effective % . | . . . . . . . . . . . . Robots Rewired . | . . . . . . . . . . . . Allies Hacked . | . . . . . . . . . . . . Hacks Repelled . | . . . . . . . . . . . . Allies | -11 -10 -10 -9 -9 -9 -8 -8 -7 -7 -7 -7 -------- Run | Yrd Mat Min Mat Min Exi Min Mat Fac Low Low Zio Total Allies 5 | . . 1 . 2 . . . 2 . . . Largest Group 2 | . . 1 . 2 2 . . 2 2 2 2 Highest-Rated Group 64 | . . 31 . 40 40 . . 64 64 64 64 Highest-Rated Ally 32 | . . 31 . 31 31 . . 32 32 32 32 Total Orders . | . . . . . . . . . . . . Ally Attacks 29 | . . 11 . . . . . 2 3 . 13 Total Damage 729 | . . 147 . . . . . 67 77 . 438 Kills 6 | . . . . . . . . 1 1 . 4 Allies Corrupted . | . . . . . . . . . . . . Allies Melted . | . . . . . . . . . . . . Intel | -11 -10 -10 -9 -9 -9 -8 -8 -7 -7 -7 -7 ------- Run | Yrd Mat Min Mat Min Exi Min Mat Fac Low Low Zio Active Infowar (turns) 8335 | 9 1244 701 481 754 403 592 947 1230 411 257 1306 Optics 1 | . . . . . . . . . . . 1 Sensors 5458 | . . . . 312 403 592 947 1230 411 257 1306 Terrain 2007 | 9 1244 701 53 . . . . . . . . T.N.C. 1009 | . . . 428 581 . . . . . . . Robot Analysis Total 1 | . 1 . . . . . . . . . . Derelict Logs Recovered 8 | . . 2 . 2 . . . . 2 1 1 Drone Launches . | . . . . . . . . . . . . Drone Recoveries . | . . . . . . . . . . . . Exploration | -11 -10 -10 -9 -9 -9 -8 -8 -7 -7 -7 -7 ------------- Run | Yrd Mat Min Mat Min Exi Min Mat Fac Low Low Zio Turns Passed 9526 | 84 1302 701 1500 754 403 592 947 1230 411 257 1345 Spaces Moved 5891 | 52 631 426 779 546 384 462 433 768 282 192 936 Core 3 | 3 . . . . . . . . . . . Treads . | . . . . . . . . . . . . Legs 5888 | 49 631 426 779 546 384 462 433 768 282 192 936 Wheels . | . . . . . . . . . . . . Hover . | . . . . . . . . . . . . Flight . | . . . . . . . . . . . . Fastest Speed 50 | 50 120 120 105 105 105 105 105 105 120 120 120 Average Speed 113 | 115 120 120 115 105 105 105 105 112 120 120 120 Slowest Speed 190 | 120 120 120 190 105 105 105 112 120 120 120 190 Overloaded Moves . | . . . . . . . . . . . . Propulsion Burnouts . | . . . . . . . . . . . . Robots Hopped . | . . . . . . . . . . . . Potential Cave-ins . | . . . . . . . . . . . . Cave-ins Triggered . | . . . . . . . . . . . . Exploration Rate (%) 66 | 3 84 91 73 99 90 92 55 25 55 41 85 Regions Visited 11 Branch Regions 7 Pre-discovered Areas 4 | . . . 2 . . . . . . . 2 Known Exits Taken 4 | . . . 1 . . 1 1 1 . . . Unknown Exits Taken 7 | 1 1 1 . 1 1 . . . 1 1 . Scrap Searched 9 | . . 2 . 1 . 1 . . . 2 3 Spaces Dug 23 | . . . 11 . . . 12 . . . . Terrain Destroyed 145 | . 20 15 17 11 . 10 24 46 . . 2 Melee . | . . . . . . . . . . . . Projectile 10 | . . . . 1 . 1 8 . . . . AOE 135 | . 20 15 17 10 . 9 16 46 . . 2 Terrain Rammed . | . . . . . . . . . . . . Walls Destroyed . | . . . . . . . . . . . . Machines Disabled . | . . . . . . . . . . . . Actions | -11 -10 -10 -9 -9 -9 -8 -8 -7 -7 -7 -7 --------- Run | Yrd Mat Min Mat Min Exi Min Mat Fac Low Low Zio Total 7772 | 68 1052 563 1145 681 383 513 724 1015 341 215 1072 Wait 998 | 2 303 109 158 91 . 13 119 93 41 19 50 Move 5880 | 51 630 425 778 545 383 461 432 767 281 191 936 Hop . | . . . . . . . . . . . . Pick Up 20 | 1 1 1 5 1 . 1 2 2 . . 6 Fast Attach 49 | 6 7 1 8 3 . . 6 9 . . 9 Attach 1 | . . . . . . . . . . . 1 Detach 2 | . 1 . . . . . 1 . . . . Swap 34 | 1 . . 7 1 . . 4 11 . 2 8 Drop 59 | 2 5 . 16 2 . 1 8 14 . 1 10 Fire 538 | 5 92 26 136 22 . 28 102 75 8 2 42 Melee . | . . . . . . . . . . . . Ram . | . . . . . . . . . . . . Kick 9 | . . . 2 2 . . 1 . . . 4 Crush . | . . . . . . . . . . . . Escape Stasis . | . . . . . . . . . . . . Rewire . | . . . . . . . . . . . . Trap 1 | . . . . . . . . . . . 1 Miscellaneous 181 | . 13 1 35 14 . 9 49 44 11 . 5 Route ------- -11/Scrapyard -10/Materials (discovered 6 exits: *Mat x3 / [*Min x2] / [*Sub]) -10/Mines (discovered 3 exits: *Mat x2 / [*Sub]) -9/Materials (discovered 3 exits: *Mat x2 / *Min) -9/Mines (discovered 4 exits: *Mat x2 / *Exi / [*Zio]) -9/Exiles (discovered 2 exits: [*Min x2]) -8/Mines -8/Materials (discovered 2 exits: *Fac x2) -7/Factory (discovered 7 exits: Fac x4 / Sto / *Low x2) -7/Lower Caves -7/Lower Caves (discovered 2 exits: *Fac / [*Zio]) -7/Zion (discovered 2 exits: Dee / [*Pro]) History --------- Turn | Location | Event 1 | -11/Scrapyard | Upgraded with Propulsion slot (x1) 1 | -11/Scrapyard | Upgraded with Utility slot (x1) 2 | -11/Scrapyard | Discovered new exit (range 18) 85 | -11/Scrapyard | Entered Materials 124 | -10/Materials | Central database locked down 314 | -10/Materials | Build established: Mutant 551 | -10/Materials | Discovered new exit (range 12) 675 | -10/Materials | Discovered new exit (range 18) 680 | -10/Materials | Discovered new exit (range 20) 784 | -10/Materials | Reached level 2 788 | -10/Materials | Upgraded with Weapon slot (x1) 1146 | -10/Materials | Discovered new exit (range 13) 1213 | -10/Materials | Discovered new exit (range 12) 1279 | -10/Materials | Discovered new exit (range 14) 1387 | -10/Materials | Entered Mines 1390 | -10/Mines | Received a Mining Laser from a helpful Derelict 1416 | -10/Mines | Found a hidden stash of uninstalled traps 1421 | -10/Mines | Learned Materials emergency access door positions 1437 | -10/Mines | Discovered new exit (range 9) 1451 | -10/Mines | Reached level 3 1476 | -10/Mines | Upgraded with Utility slot (x1) 1492 | -10/Mines | Discovered new exit (range 9) 1576 | -10/Mines | Assembled infested the area 1581 | -10/Mines | Assisted by a Guerilla fighting off Assembled 1615 | -10/Mines | Build established: Skirmisher 1712 | -10/Mines | Discovered new exit (range 10) 1941 | -10/Mines | Learned location of 1 exit from Materials 2088 | -10/Mines | Entered Materials 2089 | -9/Materials | Identified exit to Materials 2090 | -9/Materials | Reached level 4 2092 | -9/Materials | Upgraded with Utility slot (x1) 2259 | -9/Materials | Core integrity fell below 50% 2281 | -9/Materials | Reached level 5 2300 | -9/Materials | Upgraded with Utility slot (x1) 2407 | -9/Materials | Central database locked down 2442 | -9/Materials | Build established: Mutant 2548 | -9/Materials | Identified exit to Mines 2604 | -9/Materials | Reached level 6 2607 | -9/Materials | Upgraded with Power slot (x1) 2992 | -9/Materials | Discovered exit to Materials (range 18) 3170 | -9/Materials | Learned Materials security intel 3205 | -9/Materials | Learned 4 Recycling zone layouts 3230 | -9/Materials | Learned Storage trap positions 3267 | -9/Materials | Learned Storage security intel 3315 | -9/Materials | Learned location of Mines (-8) 3375 | -9/Materials | Learned Storage stockpile data 3462 | -9/Materials | Reached level 7 3588 | -9/Materials | Entered Mines 3594 | -9/Mines | Reached level 8 3651 | -9/Mines | A Derelict revealed a hidden shortcut to a safe place 3723 | -9/Mines | Deemed a non-threat by the Exiles lab entrance 3723 | -9/Mines | Discovered new exit (range 5) 3769 | -9/Mines | A weapon hastily lodged in a ceiling crevice suddenly fell to the ground 3793 | -9/Mines | Discovered exit to Materials (range 11) 3825 | -9/Mines | Discovered exit to Materials (range 5) 3833 | -9/Mines | Received a Rocket Launcher from a helpful Derelict 3963 | -9/Mines | Learned location of 1 exit from Materials 4027 | -9/Mines | Found a damaged Exp. Sensor Array with a note attached 4030 | -9/Mines | Found Prototype Device 4030 | -9/Mines | Identified Exp. Sensor Array 4146 | -9/Mines | Joined a pair of Derelicts in attacking an 0b10 outpost 4342 | -9/Mines | Entered Exiles 4342 | -9/Exiles | Found Exiles lab abandoned 4342 | -9/Exiles | Accompanied by 2 allies 4356 | -9/Exiles | Discovered new exit (range 16) 4372 | -9/Exiles | Led the pair of lost Derelicts to a safe place 4735 | -9/Exiles | Discovered new exit (range 10) 4745 | -9/Exiles | Entered Mines 4999 | -8/Mines | Reached level 9 5324 | -8/Mines | Discovered exit to Materials (range 7) 5337 | -8/Mines | Entered Materials 5338 | -8/Materials | Identified exit to Factory 5339 | -8/Materials | Reached level 10 5473 | -8/Materials | Reached level 11 5865 | -8/Materials | Core integrity fell below 50% 5884 | -8/Materials | Core integrity fell below 20% 5890 | -8/Materials | Reached level 12 6040 | -8/Materials | Discovered exit to Factory (range 18) 6227 | -8/Materials | Repaired Reactive Plating 6284 | -8/Materials | Entered Factory 6285 | -7/Factory | Core integrity fell below 50% 6286 | -7/Factory | Reached level 13 6441 | -7/Factory | Identified exit to Storage 6441 | -7/Factory | Identified exit to Lower Caves 6551 | -7/Factory | Identified exit to Factory 6650 | -7/Factory | Build established: Hacker-Mutant 6772 | -7/Factory | Reached level 14 6785 | -7/Factory | Upgraded with Utility slot (x1) 7272 | -7/Factory | Build established: Scavenger-Mutant 7418 | -7/Factory | Fabricated Y-54 Guardian? 7514 | -7/Factory | Entered Lower Caves 7514 | -7/Lower Caves | Accompanied by 2 allies 7516 | -7/Lower Caves | Reached level 15 7594 | -7/Lower Caves | Learned Factory security intel 7786 | -7/Lower Caves | Learned Factory terminal intel 7900 | -7/Lower Caves | Encountered a Warlord checkpoint 7901 | -7/Lower Caves | Discovered new exit (range 5) 7925 | -7/Lower Caves | Entered another Lower Caves area 7925 | -7/Lower Caves | Accompanied by 2 allies 7960 | -7/Lower Caves | Discovered exit to Factory (range 11) 7981 | -7/Lower Caves | Attracted the attention of an 0b10 checkpoint 8100 | -7/Lower Caves | Learned Factory terminal intel 8156 | -7/Lower Caves | Discovered new exit (range 6) 8182 | -7/Lower Caves | Entered Zion 8182 | -7/Zion | Accompanied by 2 allies 8301 | -7/Zion | Discovered new exit (range 14) 8314 | -7/Zion | Found Prototype Special Weapon 8315 | -7/Zion | Identified RU-N14's Throwing Claymores 8320 | -7/Zion | Found RU-N14's Throwing Claymores 8396 | -7/Zion | Build established: Hacker-Mutant 8398 | -7/Zion | Learned location of Data Miner (-6) 8403 | -7/Zion | Learned location of Storage (-7) 8472 | -7/Zion | Found Prototype Device 8473 | -7/Zion | Identified Phasing AFG 8514 | -7/Zion | Found Prototype Processor 8514 | -7/Zion | Identified Exp. Armor Integrity Analyzer 8518 | -7/Zion | Found Prototype Processor 8518 | -7/Zion | Identified Spectral Analyzer 8636 | -7/Zion | Identified exit to Deep Caves 8747 | -7/Zion | Visited the Megawrench Repair Shop 8783 | -7/Zion | Received a hallucinogenic algorithm 8813 | -7/Zion | Build established: Hacker-Skirmisher 8981 | -7/Zion | Met Imprinter 9058 | -7/Zion | Found Prototype Device 9058 | -7/Zion | Identified Bomb Factory No. 2 9152 | -7/Zion | Warned about trapping Zion interior 9292 | -7/Zion | Attacked by Zionites 9458 | -7/Zion | Core integrity fell below 20% 9527 | -7/Zion | Destroyed by 8Y-OG7(z) with Makeshift Shrapnel Gun Last Messages --------------- 09450_ OC-4FC(z) pulls a Mak. Hammer out of the Twisted Machinery. 09451_ JA-EGV(z) destroyed. 09455_ ZM-OYR(z) destroyed. 09457_ Knocked back. 09458_ OC-4FC(z) destroyed. 09463_ :DTQ6JZ5QOSMGU7PF7VTGHEG#2: 09464_ 0U-QPP(z) fiddles with the Twisted Machinery. 09479_ AJ-7N6(z) destroyed. 09479_ Switching to secondary target: 2B-82X(z). 09479_ 2B-82X(z) destroyed. 09485_ 0U-QPP(z) heat short circuits Backup Laser III. 09485_ 0U-QPP(z) overheating. 09486_ 0U-QPP(z) destroyed. 09489_ Acquired 25 matter. 09491_ Acquired Mak. Light Armor Plating. 09506_ SU-NBZ(z) pulls a Mak. Sword out of the Twisted Machinery. 09508_ SU-NBZ(z) destroyed. 09512_ System corrupted: Energy discharge (-156). 09518_ RK-YBG(c) destroyed. 09525_ 8Y-OG7(z) pulls a Mak. Shrapnel Gun out of the Twisted Machinery. Map ----- +----------------------------------------------------+ | ?????????""###"####" ###"""""""""""" """ | | ?????????"""""""""#""" ##"" """ | | ?????" X"?#"""" """" ###"" | | ?????# ""#""" "" " ###"" """"""" | | ????## """"" " # #" """"""" " | | ????" """ " ""##""" "" # | | ????" """"z""" ""###""""" " | | ????# """""" """" "####""""" "" | | ??#"""""""#""" """ z ""#?#""" """ | | ??###"#"#?#"" M z "" """#?#"" """ | | ??????"???#""" "" """"#?#"" "" | | ??????????##""" z"" """"#"""" "" | | ???????????#""" "" "" """"" """ | | ??????????#""" """" "" """? | | ??????????#"" "" """"" """ b """"? | | ??????????##" """"""""#" ?? | | ??????????""" """""""""" ??? | | ?????????#"" """#""" """ ???? | | ?????????#"" """""" "" """"" "" ????? | | ?????????#"" """""!%[ "! """"""""""??? ????? | | ?????????##""""""" ] ! ! """##"#"""????????? | | ??????????##"""#"" ""##??????????????? | | ?????????######""""z * % """#??????????????? | | ???###??##""#""##"""!%! / ""##??????????????? | | ???# #### """""""##"" """##?????????????? | | ???# " "## " ""##"""" @ """"##????????????? | | ???# "! "" """"""" """""##???????????? | | ???# " """##"""" """##??????????? | | ???# """## " """#"#" """#??????????? | | ???##"""# ""##""" ""#??????????? | | ????######## """##"" ""#??????????? | | ???????????# """"""" "##??????????? | | ???????????# """" "" """#??????????? | | ???????????#"# """ """""""#??????????? | | ???????????##" "" "" "#"""#???????????? | | ????????????##" " """ "#####???????????? | | ???????????####" *= """ ""#"#????????????? | | ??????????##"## /= """##???????????? | | ??????????#"#"""/ = %% " """#???????????? | | ??????????##"" *% " "" """#???????????? | | ###########"" """" ""#???????????? | | ""#"##""#""#" """! "##???????????? | | #""""""""""""" "" !/*=* z "##???########? | | "" """""" = ""!%!%=% ""#???#"#""#"#? | | "" % * * / """=!! "##???#"" " "#? | | "" *% = %= ! """" ""#????#" "#? | | "" ! """ **% ""###"" ""#"#???#" "## | | """""" %[ """##" """"###???## ##" | | = [""""" ""##" #""#"##???#"" """" | | ""##"" "" "#""" """"""##### | +----------------------------------------------------+ Best States ------------- Heat Dissipation 69 Coolant Potential 50 Energy Generation 28 Energy Capacity 490 Matter Stores 300 Matter Capacity 300 Sight Range 18 Robot Scan Range 20 Terrain Scan Range 16 Terrain Scan Density 110 Additional Mass Support 9 Armor Coverage 150 Resistance: KI 20 Weapon Cycling 15 Evasion (%) 55 Targeting Accuracy 6 Core Analysis 6 Kinecelleration 30 Salvage Targeting 4 Offensive Hacking 20 Defensive Hacking 10 Item Schematics ----------------- Hvy. EM Pulse Gun | -8/Materials | Scanalyzed Adv. Assault Cannon | -7/Zion | Archive Power Sword | -7/Zion | Archive Hvy. Missile Launcher | -7/Zion | Archive Matter Compressor | -7/Zion | Archive Flak Gun | -7/Zion | Archive Cloaking Device | -7/Zion | Archive Core Analyzer | -7/Zion | Archive Disruptor Cannon | -7/Zion | Archive Imp. Corruption Screen | -7/Zion | Archive Spear | -7/Zion | Archive Adv. Sensor Array | -7/Zion | Archive Imp. Particle Charger | -7/Zion | Archive Imp. Shield Generator | -7/Zion | Archive Drone Bay | -7/Zion | Archive HERF Cannon | -7/Zion | Archive Robot Schematics ------------------ A-02 Transporter | -9/Mines | Hacked W-25 Informer | -7/Factory | Hacked C-17 Slicer | -7/Zion | Archive T-07 Excavator | -7/Zion | Archive B-48 Gladiator | -7/Zion | Archive Fabricated ------------ Y-54 Guardian | x2 | -7/Factory | Preloaded Repaired ---------- Reactive Plating | 11% | -8/Materials Studied --------- Beam Cannon | -9/Materials | Hacked Aluminum Leg | -9/Materials | Hacked Imp. Aluminum Leg | -9/Materials | Hacked Hvy. EM Pulse Gun | -9/Materials | Hacked Carbon-fiber Leg | -8/Materials | Hacked Alien Tech Used ----------------- None Achievements -------------- None Challenges ------------ None RPGLIKE | -11 -10 -10 -9 -9 -9 -8 -8 -7 -7 -7 -7 --------- Run | Yrd Mat Min Mat Min Exi Min Mat Fac Low Low Zio Levels Raised 14 | . 1 1 4 1 . 1 3 2 1 . . XP Earned 24940 | 3000 2410 1075 6043 1395 139 1925 3903 3861 571 292 326 XP Spent 17555 | 3000 1050 1550 4700 . . . 105 4400 . . 2750 Upgrades 35 | 12 3 2 6 . . . 3 7 . . 2 Power Slot 1 | . . . 1 . . . . . . . . Propulsion Slot 1 | 1 . . . . . . . . . . . Utility Slot 5 | 1 . 1 2 . . . . 1 . . . Weapon Slot 1 | . 1 . . . . . . . . . . Core Integrity 3 | . . . . . . . 3 . . . . Heat Dissipation 5 | 5 . . . . . . . . . . . Mass Support 2 | . . . 2 . . . . . . . . Inventory Capacity 6 | 1 1 1 1 . . . . . . . 2 Sight Range 2 | 2 . . . . . . . . . . . Terrain Scan Density 1 | . 1 . . . . . . . . . . Ranged Accuracy 2 | 2 . . . . . . . . . . . Hack Attack % 4 | . . . . . . . . 4 . . . Hack Defense % 2 | . . . . . . . . 2 . . . Protomatter Created 1387 | . 94 2 243 56 . 126 365 387 77 . 37 Integrity Restored 3770 | . 278 6 706 240 . 148 1081 969 231 . 111 Core 3360 | . 260 6 591 179 . 63 974 969 207 . 111 Parts 410 | . 18 . 115 61 . 85 107 . 24 . . Protomatter Decayed 124 | . . . 6 . . 54 . 64 . . . Game ------ Seed HugeReflexGun Manual? 0 Play Time 01:08:54 Cumulative 1017.9 hours Start 2025.10.30 @ 11:15:17 End 2025.10.30 @ 12:29:21 Sessions 1 Manual Loads 0 Difficulty Rogue Special Mode Winter2019/RPGLIKE Game No. 366 Rogue 361 Adventurer 4 Explorer 1 Win Type - Total 21 Types 13/3/1/1/0/1/0/0/1/1 Lore% 96 Gallery% 94 Achievement% 78 Wizard Run 0 Options --------- Layout 0 ASCII 0 Keyboard 0 Movement Numpad Keybinds 0 Fullscreen 2 Font 18/SmallcapsGlow Map View 76x50 Zoom Use 0% Tactical HUD 1 Map Filters NONE Filters NONE Steam 1 RUN: 828190eb-8186-48e1-a2d5-f435f392e580